fUST/lending_fUST_20250601
["ID","MTS","AMOUNT","RATE_DAILY","PERIOD"]
[363623439,1748790645278,-430.0,0.0001726,2]
[363623441,1748790645287,-1098.06223443,0.00017506,2]
[363623443,1748790645297,-430.0,0.00017534,2]
[363623445,1748790645308,-430.0,0.00017534,2]
[363623447,1748790645317,-430.0,0.00017534,2]
[363623449,1748790645327,-430.0,0.00017534,2]
[363623451,1748790645336,-430.0,0.00017534,2]
[363623453,1748790645346,-430.0,0.00017534,2]
[363623455,1748790645356,-430.0,0.00017534,2]
[363623457,1748790645365,-430.0,0.00017534,2]
[363623459,1748790645375,-430.0,0.00017534,2]
[363623461,1748790645385,-430.0,0.00017534,2]
[363623463,1748790645395,-430.0,0.00017534,2]
[363623465,1748790645404,-430.0,0.00017534,2]
[363623467,1748790645414,-430.0,0.00017534,2]
[363623469,1748790645424,-430.0,0.00017534,2]
[363623471,1748790645433,-430.0,0.00017534,2]
[363623473,1748790645443,-430.0,0.00017534,2]
[363623475,1748790645453,-516.24617768,0.00017534,2]
[363623477,1748790645462,-430.0,0.00017534,2]
[363623479,1748790645472,-430.0,0.00017534,2]
[363623481,1748790645482,-430.0,0.00017534,2]
[363623483,1748790645492,-378.24258147,0.00017534,2]
[363623485,1748790645502,-430.0,0.00017534,2]
[363623487,1748790645512,-430.0,0.00017534,2]
[363623489,1748790645522,-358.70098202,0.00017534,2]
[363623491,1748790645531,-430.0,0.00017534,2]
[363623493,1748790645541,-430.0,0.00017534,2]
[363623495,1748790645551,-171.68570327,0.00017534,2]
[363623497,1748790645560,-430.0,0.00017534,2]
[363623499,1748790645571,-430.0,0.00017534,2]
[363623500,1748790645583,-430.0,0.00017534,2]
[363623502,1748790645592,-430.0,0.00017534,2]
[363623504,1748790645602,-430.0,0.00017534,2]
[363623507,1748790645611,-430.0,0.00017534,2]
[363623509,1748790645622,-430.0,0.00017534,2]
[363623511,1748790645632,-430.0,0.00017534,2]
[363623513,1748790645642,-430.0,0.00017534,2]
[363623515,1748790645652,-489.97,0.00017534,2]
[363623516,1748790645662,-430.0,0.00017534,2]
[363623518,1748790645672,-475.44,0.00017534,2]
[363623521,1748790645686,-430.0,0.00017534,2]
[363623523,1748790645696,-430.0,0.00017534,2]
[363623525,1748790645705,-594.93,0.00017534,2]
[363623527,1748790645715,-430.0,0.00017534,2]
[363623529,1748790645724,-1531.39,0.00017534,2]
[363623531,1748790645734,-430.0,0.00017534,2]
[363623533,1748790645745,-811.98,0.00017534,2]
[363623535,1748790645754,-1580.62,0.00017534,2]
[363623537,1748790645764,-231.55355152,0.00017534,2]
[363623539,1748790645774,-430.0,0.00017534,2]
[363623541,1748790645784,-930.75,0.00017534,2]
[363623543,1748790645793,-448.11,0.00017534,2]
[363623545,1748790645803,-430.0,0.00017534,2]
[363623547,1748790645812,-430.0,0.00017534,2]
[363623549,1748790645823,-430.0,0.00017534,2]
[363623551,1748790645833,-430.0,0.00017534,2]
[363623553,1748790645843,-461.55,0.00017534,2]
[363623555,1748790645853,-430.0,0.00017534,2]
[363623557,1748790645863,-430.0,0.00017534,2]
[363623559,1748790645873,-430.0,0.00017534,2]
[363623561,1748790645883,-507.04,0.00017534,2]
[363623563,1748790645893,-430.0,0.00017534,2]
[363623565,1748790645903,-430.0,0.00017534,2]
[363623567,1748790645913,-430.0,0.00017534,2]
[363623568,1748790645923,-430.0,0.00017534,2]
[363623569,1748790645932,-492.07,0.00017534,2]
[363623570,1748790645942,-1353.2,0.00017534,2]
[363623571,1748790645951,-430.0,0.00017534,2]
[363623572,1748790645961,-430.0,0.00017534,2]
[363623573,1748790645970,-440.47,0.00017534,2]
[363623574,1748790645979,-430.0,0.00017534,2]
[363623575,1748790645988,-430.0,0.00017534,2]
[363623576,1748790645998,-430.0,0.00017534,2]
[363623578,1748790646008,-430.0,0.00017534,2]
[363623580,1748790646017,-430.0,0.00017534,2]
[363623582,1748790646027,-578.23,0.00017534,2]
[363623584,1748790646037,-602.38,0.00017534,2]
[363623586,1748790646047,-430.0,0.00017534,2]
[363623588,1748790646056,-430.0,0.00017534,2]
[363623589,1748790646066,-626.67,0.00017534,2]
[363623592,1748790646076,-430.0,0.00017534,2]
[363623594,1748790646086,-430.0,0.00017534,2]
[363623596,1748790646096,-430.0,0.00017534,2]
[363623611,1748790646106,-1038.56,0.00017534,2]
[363623613,1748790646245,-573.55,0.00017534,2]
[363623615,1748790646255,-939.98,0.00017534,2]
[363623617,1748790646265,-430.0,0.00017534,2]
[363623619,1748790646274,-430.0,0.00017534,2]
[363623621,1748790646284,-447.61,0.00017534,2]
[363623623,1748790646297,-430.0,0.00017534,2]
[363623626,1748790646309,-430.0,0.00017534,2]
[363623628,1748790646319,-430.0,0.00017534,2]
[363623630,1748790646328,-430.0,0.00017534,2]
[363623632,1748790646338,-500.0,0.0001758,2]
[363623634,1748790646347,-1000.0,0.00017665,2]
[363623636,1748790646357,-2357.76,0.00017798,3]
[363623638,1748790646367,-2804.6,0.00017798,3]
[363623640,1748790646376,-2804.6,0.00017798,3]
[363623642,1748790646386,-500.0,0.00017802,2]
[363623644,1748790646396,-160.0,0.00017807,2]
[363623646,1748790646405,-430.0,0.00017808,2]
[363623648,1748790646415,-430.0,0.00017808,2]
[363623650,1748790646425,-430.0,0.00017808,2]
[363623651,1748790646435,-430.0,0.00017808,2]
[363623653,1748790646445,-430.0,0.00017808,2]
[363623655,1748790646454,-430.0,0.00017808,2]
[363623657,1748790646464,-430.0,0.00017808,2]
[363623660,1748790646474,-430.0,0.00017808,2]
[363623661,1748790646484,-430.0,0.00017808,2]
[363623664,1748790646494,-430.0,0.00017808,2]
[363623666,1748790646504,-430.0,0.00017808,2]
[363623668,1748790646514,-430.0,0.00017808,2]
[363623670,1748790646523,-281.24695185,0.00017808,2]
[363623672,1748790646532,-430.0,0.00017808,2]
[363623674,1748790646547,-430.0,0.00017808,2]
[363623676,1748790646558,-430.0,0.00017808,2]
[363623678,1748790646567,-430.0,0.00017808,2]
[363623680,1748790646582,-430.0,0.00017808,2]
[363623682,1748790646591,-430.0,0.00017808,2]
[363623684,1748790646601,-489.97,0.00017808,2]
[363623686,1748790646611,-430.0,0.00017808,2]
[363623688,1748790646623,-475.44,0.00017808,2]
[363623690,1748790646633,-430.0,0.00017808,2]
[363623692,1748790646642,-430.0,0.00017808,2]
[363623694,1748790646652,-594.93,0.00017808,2]
[363623696,1748790646662,-1531.39,0.00017808,2]
[363623698,1748790646673,-430.0,0.00017808,2]
[363623700,1748790646683,-811.98,0.00017808,2]
[363623702,1748790646695,-1580.62,0.00017808,2]
[363623704,1748790646704,-453.91614142,0.00017808,2]
[363623706,1748790646714,-930.75,0.00017808,2]
[363623708,1748790646723,-448.11,0.00017808,2]
[363623710,1748790646733,-445.27,0.00017808,2]
[363623712,1748790646745,-430.0,0.00017808,2]
[363623715,1748790646756,-461.55,0.00017808,2]
[363623717,1748790646766,-430.0,0.00017808,2]
[363623719,1748790646777,-430.0,0.00017808,2]
[363623721,1748790646788,-430.0,0.00017808,2]
[363623723,1748790646800,-507.04,0.00017808,2]
[363623725,1748790646810,-503.08,0.00017808,2]
[363623727,1748790646821,-430.0,0.00017808,2]
[363623729,1748790646830,-430.0,0.00017808,2]
[363623731,1748790646840,-430.0,0.00017808,2]
[363623733,1748790646850,-492.07,0.00017808,2]
[363623735,1748790646860,-1353.2,0.00017808,2]
[363623737,1748790646870,-430.0,0.00017808,2]
[363623739,1748790646879,-440.47,0.00017808,2]
[363623741,1748790646889,-430.0,0.00017808,2]
[363623743,1748790646899,-430.0,0.00017808,2]
[363623745,1748790646909,-430.0,0.00017808,2]
[363623747,1748790646919,-266.04,0.00017808,2]
[363623749,1748790646930,-430.0,0.00017808,2]
[363623751,1748790646939,-602.38,0.00017808,2]
[363623753,1748790646950,-430.0,0.00017808,2]
[363623755,1748790646959,-430.0,0.00017808,2]
[363623757,1748790646969,-626.67,0.00017808,2]
[363623759,1748790646979,-430.0,0.00017808,2]
[363623761,1748790646988,-430.0,0.00017808,2]
[363623763,1748790646998,-430.0,0.00017808,2]
[363623765,1748790647008,-1038.56,0.00017808,2]
[363623767,1748790647018,-573.55,0.00017808,2]
[363623769,1748790647028,-939.98,0.00017808,2]
[363623771,1748790647038,-430.0,0.00017808,2]
[363623773,1748790647048,-430.0,0.00017808,2]
[363623775,1748790647058,-447.61,0.00017808,2]
[363623777,1748790647068,-430.0,0.00017808,2]
[363623779,1748790647078,-430.0,0.00017808,2]
[363623781,1748790647087,-430.0,0.00017808,2]
[363623783,1748790647097,-430.0,0.00017808,2]
[363623785,1748790647106,-2725.84323569,0.000179,2]
[363623787,1748790647117,-1518.26890025,0.00017934,2]
[363623789,1748790647126,-352.0,0.00017952,2]
[363623791,1748790647136,-182.95,0.00018,2]
[363623793,1748790647145,-1178.88,0.00018072,3]
[363623795,1748790647155,-589.44,0.00018072,3]
[363623797,1748790647165,-430.0,0.00018082,2]
[363623799,1748790647175,-171.73746534,0.00018082,2]
[363623801,1748790647186,-430.0,0.00018082,2]
[363623803,1748790647196,-430.0,0.00018082,2]
[363623805,1748790647206,-430.0,0.00018082,2]
[363623807,1748790647217,-430.0,0.00018082,2]
[363623809,1748790647230,-430.0,0.00018082,2]
[363623811,1748790647243,-453.68,0.00018082,2]
[363623813,1748790647252,-224.34,0.00018082,2]
[363623815,1748790647261,-489.97,0.00018082,2]
[363623817,1748790647271,-475.44,0.00018082,2]
[363623819,1748790647281,-430.0,0.00018082,2]
[363623821,1748790647294,-594.93,0.00018082,2]
[363623823,1748790647304,-1531.39,0.00018082,2]
[363623825,1748790647314,-430.0,0.00018082,2]
[363623827,1748790647324,-811.98,0.00018082,2]
[363623829,1748790647341,-1580.62,0.00018082,2]
[363623831,1748790647350,-930.75,0.00018082,2]
[363623833,1748790647360,-448.11,0.00018082,2]
[363623835,1748790647371,-283.62,0.00018082,2]
[363623837,1748790647381,-461.55,0.00018082,2]
[363623839,1748790647391,-430.0,0.00018082,2]
[363623841,1748790647402,-430.0,0.00018082,2]
[363623843,1748790647412,-507.04,0.00018082,2]
[363623846,1748790647422,-430.0,0.00018082,2]
[363623849,1748790647432,-430.0,0.00018082,2]
[363623852,1748790647441,-492.07,0.00018082,2]
[363623855,1748790647451,-1353.2,0.00018082,2]
[363623858,1748790647460,-430.0,0.00018082,2]
[363623860,1748790647469,-440.47,0.00018082,2]
[363623862,1748790647479,-430.0,0.00018082,2]
[363623864,1748790647488,-430.0,0.00018082,2]
[363623866,1748790647497,-430.0,0.00018082,2]
[363623868,1748790647506,-430.0,0.00018082,2]
[363623870,1748790647515,-602.38,0.00018082,2]
[363623872,1748790647525,-430.0,0.00018082,2]
[363623874,1748790647535,-500.7,0.00018082,2]
[363623876,1748790647545,-626.67,0.00018082,2]
[363623878,1748790647555,-430.0,0.00018082,2]
[363623880,1748790647565,-430.0,0.00018082,2]
[363623882,1748790647578,-430.0,0.00018082,2]
[363623884,1748790647587,-1038.56,0.00018082,2]
[363623886,1748790647597,-573.55,0.00018082,2]
[363623888,1748790647607,-939.98,0.00018082,2]
[363623890,1748790647618,-430.0,0.00018082,2]
[363623892,1748790647627,-430.0,0.00018082,2]
[363623894,1748790647637,-447.61,0.00018082,2]
[363623896,1748790647648,-430.0,0.00018082,2]
[363623898,1748790647658,-430.0,0.00018082,2]
[363623900,1748790647667,-430.0,0.00018082,2]
[363623902,1748790647676,-2725.84323559,0.00018107,2]
[363623904,1748790647686,-500.0,0.00018213,2]
[363623906,1748790647695,-2725.84323559,0.00018314,2]
[363623908,1748790647705,-186.26523875,0.00018356,2]
[363623910,1748790647716,-430.0,0.00018356,2]
[363623912,1748790647725,-430.0,0.00018356,2]
[363623914,1748790647735,-430.0,0.00018356,2]
[363623916,1748790647745,-430.0,0.00018356,2]
[363623918,1748790647756,-489.97,0.00018356,2]
[363623920,1748790647765,-475.44,0.00018356,2]
[363623922,1748790647774,-594.93,0.00018356,2]
[363623924,1748790647785,-1531.39,0.00018356,2]
[363623926,1748790647795,-430.0,0.00018356,2]
[363623928,1748790647805,-811.98,0.00018356,2]
[363623930,1748790647815,-1580.62,0.00018356,2]
[363623932,1748790647825,-930.75,0.00018356,2]
[363623934,1748790647835,-448.11,0.00018356,2]
[363623936,1748790647845,-461.55,0.00018356,2]
[363623938,1748790647854,-430.0,0.00018356,2]
[363623940,1748790647863,-430.0,0.00018356,2]
[363623942,1748790647874,-507.04,0.00018356,2]
[363623944,1748790647883,-430.0,0.00018356,2]
[363623946,1748790647893,-430.0,0.00018356,2]
[363623948,1748790647903,-492.07,0.00018356,2]
[363623950,1748790647913,-1353.2,0.00018356,2]
[363623952,1748790647922,-430.0,0.00018356,2]
[363623954,1748790647932,-440.47,0.00018356,2]
[363623956,1748790647942,-430.0,0.00018356,2]
[363623958,1748790647951,-387.92,0.00018356,2]
[363623960,1748790647961,-430.0,0.00018356,2]
[363623962,1748790647971,-430.0,0.00018356,2]
[363623964,1748790647982,-602.38,0.00018356,2]
[363623966,1748790647992,-430.0,0.00018356,2]
[363623968,1748790648002,-626.67,0.00018356,2]
[363623970,1748790648012,-430.0,0.00018356,2]
[363623972,1748790648023,-430.0,0.00018356,2]
[363623974,1748790648034,-1038.56,0.00018356,2]
[363623977,1748790648046,-573.55,0.00018356,2]
[363623979,1748790648056,-939.98,0.00018356,2]
[363623980,1748790648067,-430.0,0.00018356,2]
[363623983,1748790648078,-430.0,0.00018356,2]
[363623985,1748790648088,-447.61,0.00018356,2]
[363623987,1748790648098,-430.0,0.00018356,2]
[363623989,1748790648108,-430.0,0.00018356,2]
[363623991,1748790648118,-430.0,0.00018356,2]
[363623993,1748790648127,-2725.84323559,0.00018521,2]
[363623995,1748790648137,-430.0,0.0001863,2]
[363623997,1748790648147,-430.0,0.0001863,2]
[363623999,1748790648157,-430.0,0.0001863,2]
[363624001,1748790648168,-431.51226882,0.0001863,2]
[363624003,1748790648178,-489.97,0.0001863,2]
[363624005,1748790648187,-475.44,0.0001863,2]
[363624007,1748790648197,-594.93,0.0001863,2]
[363624009,1748790648208,-1531.39,0.0001863,2]
[363624011,1748790648219,-430.0,0.0001863,2]
[363624013,1748790648229,-811.98,0.0001863,2]
[363624015,1748790648240,-1580.62,0.0001863,2]
[363624017,1748790648250,-930.75,0.0001863,2]
[363624019,1748790648260,-448.11,0.0001863,2]
[363624021,1748790648270,-461.55,0.0001863,2]
[363624023,1748790648279,-430.0,0.0001863,2]
[363624025,1748790648290,-201.71,0.0001863,2]
[363624027,1748790648300,-507.04,0.0001863,2]
[363624029,1748790648310,-430.0,0.0001863,2]
[363624031,1748790648319,-375.92,0.0001863,2]
[363624034,1748790648329,-492.07,0.0001863,2]
[363624036,1748790648339,-1353.2,0.0001863,2]
[363624038,1748790648348,-430.0,0.0001863,2]
[363624040,1748790648358,-440.47,0.0001863,2]
[363624042,1748790648367,-430.0,0.0001863,2]
[363624044,1748790648378,-430.0,0.0001863,2]
[363624046,1748790648387,-285.42,0.0001863,2]
[363624048,1748790648397,-602.38,0.0001863,2]
[363624050,1748790648407,-202.41,0.0001863,2]
[363624052,1748790648416,-626.67,0.0001863,2]
[363624054,1748790648426,-430.0,0.0001863,2]
[363624056,1748790648436,-458.48,0.0001863,2]
[363624058,1748790648446,-1038.56,0.0001863,2]
[363624060,1748790648455,-573.55,0.0001863,2]
[363624062,1748790648465,-939.98,0.0001863,2]
[363624064,1748790648474,-357.01,0.0001863,2]
[363624066,1748790648484,-430.0,0.0001863,2]
[363624068,1748790648493,-447.61,0.0001863,2]
[363624070,1748790648503,-430.0,0.0001863,2]
[363624072,1748790648512,-265.27,0.0001863,2]
[363624074,1748790648522,-316.41932258,0.0001863,2]
[363624076,1748790648531,-423.51412927,0.00018674,2]
[363624078,1748790648542,-229.3709046,0.00018674,2]
[363624080,1748790648552,-160.0,0.00018674,2]
[363624082,1748790648562,-160.0,0.00018674,2]
[363624084,1748790648572,-160.0,0.00018674,2]
[363624086,1748790648583,-160.0,0.00018674,2]
[363624088,1748790648593,-2725.84323559,0.00018728,2]
[363624100,1748790648707,-3000.0,0.000188,2]
[363624102,1748790648716,-3000.0,0.0001881,2]
[363624104,1748790648726,-3000.0,0.0001882,2]
[363624107,1748790648736,-3000.0,0.0001883,2]
[363624109,1748790648746,-3000.0,0.0001884,2]
[363624111,1748790648756,-4483.080538,0.0001885,2]
[363624113,1748790648766,-430.0,0.00018904,2]
[363624115,1748790648777,-430.0,0.00018904,2]
[363624116,1748790648787,-440.47,0.00018904,2]
[363624119,1748790648796,-489.97,0.00018904,2]
[363624121,1748790648806,-475.44,0.00018904,2]
[363624122,1748790648815,-594.93,0.00018904,2]
[363624125,1748790648825,-1531.39,0.00018904,2]
[363624127,1748790648835,-430.0,0.00018904,2]
[363624129,1748790648844,-811.98,0.00018904,2]
[363624131,1748790648854,-1580.62,0.00018904,2]
[363624133,1748790648864,-930.75,0.00018904,2]
[363624135,1748790648873,-448.11,0.00018904,2]
[363624137,1748790648882,-461.55,0.00018904,2]
[363624139,1748790648893,-430.0,0.00018904,2]
[363624141,1748790648903,-507.04,0.00018904,2]
[363624143,1748790648913,-553.3792538,0.00018904,2]
[363624145,1748790648922,-492.07,0.00018904,2]
[363624147,1748790648932,-1353.2,0.00018904,2]
[363624149,1748790648941,-278.75,0.00018904,2]
[363624151,1748790648951,-440.47,0.00018904,2]
[363624153,1748790648961,-430.0,0.00018904,2]
[363624155,1748790648970,-250.01,0.00018904,2]
[363624157,1748790648980,-602.38,0.00018904,2]
[363624159,1748790648990,-626.67,0.00018904,2]
[363624161,1748790648999,-430.0,0.00018904,2]
[363624163,1748790649009,-1038.56,0.00018904,2]
[363624165,1748790649018,-573.55,0.00018904,2]
[363624167,1748790649028,-939.98,0.00018904,2]
[363624169,1748790649038,-430.0,0.00018904,2]
[363624171,1748790649047,-447.61,0.00018904,2]
[363624173,1748790649056,-194.43,0.00018904,2]
[363624175,1748790649067,-2725.84323559,0.00018934,2]
[363624177,1748790649077,-2725.84323559,0.00019141,2]
[363624179,1748790649086,-182.15453462,0.00019177,2]
[363624181,1748790649096,-430.0,0.00019178,2]
[363624183,1748790649105,-430.0,0.00019178,2]
[363624185,1748790649115,-430.0,0.00019178,2]
[363624187,1748790649124,-430.0,0.00019178,2]
[363624189,1748790649134,-430.0,0.00019178,2]
[363624191,1748790649144,-430.0,0.00019178,2]
[363624193,1748790649153,-430.0,0.00019178,2]
[363624195,1748790649163,-430.0,0.00019178,2]
[363624197,1748790649172,-430.0,0.00019178,2]
[363624199,1748790649182,-489.97,0.00019178,2]
[363624201,1748790649192,-475.44,0.00019178,2]
[363624203,1748790649201,-594.93,0.00019178,2]
[363624205,1748790649211,-1531.39,0.00019178,2]
[363624207,1748790649220,-430.0,0.00019178,2]
[363624209,1748790649230,-811.98,0.00019178,2]
[363624211,1748790649240,-1580.62,0.00019178,2]
[363624213,1748790649249,-930.75,0.00019178,2]
[363624215,1748790649259,-448.11,0.00019178,2]
[363624217,1748790649268,-461.55,0.00019178,2]
[363624219,1748790649279,-430.0,0.00019178,2]
[363624221,1748790649290,-507.04,0.00019178,2]
[363624223,1748790649299,-492.07,0.00019178,2]
[363624225,1748790649308,-1353.2,0.00019178,2]
[363624227,1748790649318,-500.0,0.00019178,2]
[363624229,1748790649328,-500.0,0.00019178,2]
[363624231,1748790649337,-500.0,0.00019178,2]
[363624233,1748790649347,-500.0,0.00019178,2]
[363624235,1748790649356,-500.0,0.00019178,2]
[363624237,1748790649365,-500.0,0.00019178,2]
[363624239,1748790649375,-500.0,0.00019178,2]
[363624241,1748790649384,-500.0,0.00019178,2]
[363624243,1748790649393,-528.98247694,0.00019178,2]
[363624245,1748790649403,-500.0,0.00019178,2]
[363624247,1748790649413,-500.0,0.00019178,2]
[363624249,1748790649423,-500.0,0.00019178,2]
[363624251,1748790649432,-500.0,0.00019178,2]
[363624253,1748790649441,-500.0,0.00019178,2]
[363624255,1748790649451,-440.47,0.00019178,2]
[363624257,1748790649461,-430.0,0.00019178,2]
[363624259,1748790649470,-602.38,0.00019178,2]
[363624261,1748790649481,-626.67,0.00019178,2]
[363624263,1748790649490,-430.0,0.00019178,2]
[363624265,1748790649500,-1038.56,0.00019178,2]
[363624267,1748790649509,-573.55,0.00019178,2]
[363624269,1748790649518,-939.98,0.00019178,2]
[363624271,1748790649528,-430.0,0.00019178,2]
[363624273,1748790649538,-447.61,0.00019178,2]
[363624275,1748790649547,-500.0,0.00019178,2]
[363624277,1748790649556,-500.0,0.00019178,2]
[363624279,1748790649566,-431.58994625,0.00019178,2]
[363624281,1748790649579,-500.0,0.00019178,2]
[363624283,1748790649588,-500.0,0.00019178,2]
[363624285,1748790649598,-500.0,0.00019178,2]
[363624287,1748790649608,-500.0,0.00019178,2]
[363624289,1748790649618,-500.0,0.00019178,2]
[363624291,1748790649628,-500.0,0.00019178,2]
[363624293,1748790649638,-151.0,0.00019178,2]
[363624295,1748790649648,-173.899304,0.00019178,2]
[363624297,1748790649658,-156.587,0.00019233,2]
[363624299,1748790649668,-1518.26890025,0.00019256,2]
[363624301,1748790649677,-162.380719,0.00019288,2]
[363624303,1748790649687,-168.3888056,0.00019343,2]
[363624305,1748790649696,-2725.84323559,0.00019348,2]
[363624306,1748790649705,-174.61919141,0.00019398,2]
[363624308,1748790649716,-430.0,0.00019452,2]
[363624310,1748790649727,-430.0,0.00019452,2]
[363624313,1748790649738,-489.97,0.00019452,2]
[363624315,1748790649750,-475.44,0.00019452,2]
[363624317,1748790649760,-594.93,0.00019452,2]
[363624319,1748790649770,-1531.39,0.00019452,2]
[363624320,1748790649781,-430.0,0.00019452,2]
[363624322,1748790649791,-811.98,0.00019452,2]
[363624324,1748790649801,-1580.62,0.00019452,2]
[363624327,1748790649812,-930.75,0.00019452,2]
[363624329,1748790649822,-448.11,0.00019452,2]
[363624330,1748790649831,-461.55,0.00019452,2]
[363624333,1748790649841,-430.0,0.00019452,2]
[363624335,1748790649851,-507.04,0.00019452,2]
[363624337,1748790649861,-492.07,0.00019452,2]
[363624339,1748790649870,-1353.2,0.00019452,2]
[363624341,1748790649880,-440.47,0.00019452,2]
[363624342,1748790649891,-430.0,0.00019452,2]
[363624344,1748790649900,-602.38,0.00019452,2]
[363624347,1748790649910,-626.67,0.00019452,2]
[363624348,1748790649920,-430.0,0.00019452,2]
[363624350,1748790649930,-1038.56,0.00019452,2]
[363624352,1748790649940,-573.55,0.00019452,2]
[363624354,1748790649950,-939.98,0.00019452,2]
[363624356,1748790649960,-430.0,0.00019452,2]
[363624358,1748790649970,-447.61,0.00019452,2]
[363624360,1748790649979,-181.08010149,0.00019453,2]
[363624362,1748790649989,-187.78006525,0.00019508,2]
[363624364,1748790649999,-2725.84323559,0.00019555,2]
[363624366,1748790650009,-194.72792766,0.00019563,2]
[363624368,1748790650019,-255.496,0.00019564,2]
[363624370,1748790650028,-201.93286099,0.00019618,2]
[363624373,1748790650040,-209.40437684,0.00019673,2]
[363624375,1748790650050,-430.0,0.00019726,2]
[363624377,1748790650059,-430.0,0.00019726,2]
[363624378,1748790650069,-489.97,0.00019726,2]
[363624380,1748790650080,-475.44,0.00019726,2]
[363624382,1748790650090,-594.93,0.00019726,2]
[363624385,1748790650100,-1531.39,0.00019726,2]
[363624386,1748790650110,-458.89,0.00019726,2]
[363624388,1748790650119,-811.98,0.00019726,2]
[363624390,1748790650129,-1580.62,0.00019726,2]
[363624392,1748790650138,-930.75,0.00019726,2]
[363624394,1748790650148,-448.11,0.00019726,2]
[363624396,1748790650157,-461.55,0.00019726,2]
[363624398,1748790650167,-430.0,0.00019726,2]
[363624400,1748790650177,-507.04,0.00019726,2]
[363624402,1748790650186,-492.07,0.00019726,2]
[363624404,1748790650197,-1353.2,0.00019726,2]
[363624406,1748790650207,-440.47,0.00019726,2]
[363624408,1748790650217,-191.12576746,0.00019726,2]
[363624410,1748790650227,-602.38,0.00019726,2]
[363624412,1748790650236,-626.67,0.00019726,2]
[363624414,1748790650246,-430.0,0.00019726,2]
[363624416,1748790650255,-1038.56,0.00019726,2]
[363624418,1748790650265,-573.55,0.00019726,2]
[363624420,1748790650275,-939.98,0.00019726,2]
[363624422,1748790650285,-430.0,0.00019726,2]
[363624424,1748790650295,-447.61,0.00019726,2]
[363624426,1748790650305,-217.15233878,0.00019728,2]
[363624428,1748790650315,-2725.84323559,0.00019762,2]
[363624430,1748790650324,-282.30381527,0.00019783,2]
[363624432,1748790650334,-2725.84323559,0.00019969,2]
[363624434,1748790650343,-430.0,0.0002,2]
[363624436,1748790650353,-430.0,0.0002,2]
[363624438,1748790650363,-489.97,0.0002,2]
[363624440,1748790650373,-475.44,0.0002,2]
[363624442,1748790650382,-594.93,0.0002,2]
[363624444,1748790650391,-1531.39,0.0002,2]
[363624446,1748790650401,-811.98,0.0002,2]
[363624448,1748790650411,-1580.62,0.0002,2]
[363624450,1748790650421,-930.75,0.0002,2]
[363624452,1748790650432,-448.11,0.0002,2]
[363624454,1748790650441,-461.55,0.0002,2]
[363624456,1748790650451,-430.0,0.0002,2]
[363624458,1748790650461,-507.04,0.0002,2]
[363624460,1748790650470,-492.07,0.0002,2]